[Event "RUS-ch Rapid Men 2018"]
[Site "Sochi"]
[Date "2018.10.05"]
[Round "3"]
[White "Kurbedinov, Ramis"]
[Black "Belyakov, Bogdan"]
[Result "0-1"]
[ECO "A06"]
[WhiteElo "2305"]
[BlackElo "2458"]
[Annotator "RC"]
[PlyCount "112"]
[EventDate "2018.10.05"]
[EventType "swiss"]
[EventCountry "RUS"]
[SourceTitle "playchess.com"]
[Source "ChessBase"]
[SourceQuality "1"]
[TimeControl "900+10"]

1. Nf3 {[%emt 0:00:00]} d5 {[%emt 0:00:00]} 2. e3 {[%emt 0:00:00]} Bg4 {[%emt 0:00:11]} 3. c4 {[%emt 0:00:00]} dxc4 {[%emt 0:00:23]} 4. Bxc4 {[%emt 0:00:03]} e6 {[%emt 0:00:01]} 5. Qb3 {[%emt 0:00:09]} Bxf3 {[%emt 0:00:12]} 6. gxf3 {[%emt 0:00:01]} Qc8 {[%emt 0:00:28]} 7. d4 {[%emt 0:00:13]} Nf6 {[%emt 0:00:07]} 8. Nc3 {[%emt 0:00:20]} Be7 {[%emt 0:00:10]} 9. d5 {[%emt 0:00:41]} e5 {[%emt 0:02:24]} 10. d6 {[%emt 0:00:10]} cxd6 {[%emt 0:01:24]} 11. Bxf7+ {[%emt 0:00:03]} Kf8 {[%emt 0:00:01]} 12. Be6 {[%emt 0:00:39]} Qc7 {[%emt 0:00:31]} 13. Nd5 {[%emt 0:01:15]} Nxd5 {[%emt 0:00:15]} 14. Bxd5 {[%emt 0:00:02]} Nc6 {[%emt 0:00:18]} 15. Bd2 {[%emt 0:00:06]} Qb6 {[%emt 0:00:20]} 16. Qxb6 {[%emt 0:00:47]} axb6 {[%emt 0:00:02]} 17. a3 {[%emt 0:00:07]} Ke8 {[%emt 0:01:36]} 18. h4 {[%emt 0:01:16]} Bf6 {[%emt 0:00:25]} 19. O-O-O {[%emt 0:01:24]} h5 {[%emt 0:01:18]} 20. Kb1 {[%emt 0:00:14]} Ra4 {[%emt 0:00:34]} 21. Be4 {[%emt 0:01:28]} d5 {[%emt 0:00:58]} 22. Bxd5 {[%emt 0:01:41]} Rxh4 {[%emt 0:00:02]} 23. Bc3 {[%emt 0:01:26]} Rxh1 {[%emt 0:00:10]} 24. Rxh1 {[%emt 0:00:01]} Ke7 {[%emt 0:00:14]} 25. Bb4+ {[%emt 0:00:59]} Kd7 {[%emt 0:01:28]} 26. Be4 {[%emt 0:00:14]} Nxb4 {[%emt 0:00:24]} 27. axb4 {[%emt 0:00:02]} Kc7 {[%emt 0:00:42]} 28. b5 {[%emt 0:01:15]} h4 {[%emt 0:00:12]} 29. Bf5 {[%emt 0:00:38]} Kd6 {[%emt 0:01:27]} 30. Bh3 {[%emt 0:00:46]} Kc5 {[%emt 0:00:04]} 31. Rd1 {[%emt 0:01:10]} Kxb5 {[%emt 0:00:13]} 32. Kc2 {[%emt 0:00:35]} Kc6 {[%emt 0:00:27]} 33. Kb3 {[%emt 0:00:08]} b5 {[%emt 0:00:03]} 34. Bd7+ {[%emt 0:00:31]} Kc5 {[%emt 0:00:18]} 35. Bh3 {[%emt 0:00:06]} Re8 {[%emt 0:00:25]} 36. Rd7 {[%emt 0:00:29]} Kb6 {[%emt 0:00:12]} 37. Rd6+ {[%emt 0:00:08]} Kc5 {[%emt 0:00:07]} 38. Rd7 {[%emt 0:00:02]} e4 {[%emt 0:00:34]} 39. f4 {[%emt 0:00:18]} Rd8 {[%emt 0:02:02]} 40. Rxd8 {[%emt 0:00:12]} Bxd8 {[%emt 0:00:02]} 41. Kc2 {[%emt 0:00:27]} Ba5 {[%emt 0:00:09]} 42. Kd1 {[%emt 0:00:33]} Kc4 {[%emt 0:00:22]} 43. Ke2 {[%emt 0:00:32]} Kb3 {[%emt 0:00:03]} 44. Bg2 {[%emt 0:00:14]} Kxb2 {[%emt 0:00:04]} 45. Bxe4 {[%emt 0:00:01]} b6 {[%emt 0:00:09]} 46. Bd3 {[%emt 0:00:54]} b4 {[%emt 0:00:03]} 47. Kf3 {[%emt 0:00:07]} Kc3 {[%emt 0:00:13]} 48. Bb1 {[%emt 0:00:13]} b5 {[%emt 0:00:02]} 49. Kg4 {[%emt 0:00:04]} Bd8 {[%emt 0:00:02]} 50. e4 {[%emt 0:00:10]} b3 {[%emt 0:00:01]} 51. e5 {[%emt 0:00:03]} b2 {[%emt 0:00:05]} 52. f5 {[%emt 0:00:17]} Kd2 {[%emt 0:00:08]} 53. f6 {[%emt 0:00:02]} gxf6 {[%emt 0:00:02]} 54. e6 {[%emt 0:00:01]} Kc1 {[%emt 0:00:14]} 55. Bf5 {[%emt 0:00:03]} b1=Q {[%emt 0:00:03]} 56. Bxb1 {[%emt 0:00:01]} Kxb1 {[%emt 0:00:01]} 0-1

[Event "RUS-ch Rapid Men 2018"]
[Site "Sochi"]
[Date "2018.10.05"]
[Round "3"]
[White "Barsamian, Eduard"]
[Black "Kryakvin, Dmitry"]
[Result "0-1"]
[ECO "D12"]
[WhiteElo "2232"]
[BlackElo "2595"]
[Annotator "ChessBase"]
[PlyCount "110"]
[EventDate "2018.10.05"]
[EventType "swiss"]
[EventCountry "RUS"]
[SourceTitle "playchess.com"]
[Source "ChessBase"]
[SourceQuality "1"]
[TimeControl "900+10"]

1. d4 {[%emt 0:00:00]} Nf6 {[%emt 0:00:00]} 2. c4 {[%emt 0:00:00]} c6 {[%emt 0:00:00]} 3. Nf3 {[%emt 0:00:01]} d5 {[%emt 0:00:00]} 4. e3 {[%emt 0:00:11]} Bf5 {[%emt 0:00:01]} 5. Nc3 {[%emt 0:00:16]} e6 {[%emt 0:00:01]} 6. Nh4 {[%emt 0:00:40]} Be4 {[%emt 0:00:31]} 7. f3 {[%emt 0:00:14]} Bg6 {[%emt 0:00:01]} 8. Qb3 {[%emt 0:00:03]} Qc7 {[%emt 0:00:03]} 9. Bd2 {[%emt 0:00:52]} Be7 {[%emt 0:00:15]} 10. Nxg6 {[%emt 0:00:23]} hxg6 {[%emt 0:00:01]} 11. g3 {[%emt 0:00:16]} a6 {[%emt 0:00:13]} 12. Bd3 {[%emt 0:01:03]} dxc4 {[%emt 0:00:17]} 13. Bxc4 {[%emt 0:00:06]} b5 {[%emt 0:00:01]} 14. Be2 {[%emt 0:00:31]} c5 {[%emt 0:00:01]} 15. dxc5 {[%emt 0:00:25]} Nbd7 {[%emt 0:00:01]} 16. Rc1 {[%emt 0:02:38]} Nxc5 {[%emt 0:00:02]} 17. Qc2 {[%emt 0:00:01]} Rc8 {[%emt 0:00:13]} 18. O-O {[%emt 0:00:28]} O-O {[%emt 0:00:07]} 19. b4 {[%emt 0:00:57]} Na4 {[%emt 0:00:23]} 20. Qb3 {[%emt 0:00:08]} Nxc3 {[%emt 0:00:18]} 21. Bxc3 {[%emt 0:02:35]} Nd5 {[%emt 0:00:36]} 22. Bb2 {[%emt 0:00:02]} Qb7 {[%emt 0:01:04]} 23. a3 {[%emt 0:00:04]} Nb6 {[%emt 0:00:28]} 24. Bd4 {[%emt 0:00:29]} Bf6 {[%emt 0:00:38]} 25. Bxf6 {[%emt 0:03:43]} gxf6 {[%emt 0:00:01]} 26. Rfd1 {[%emt 0:00:05]} f5 {[%emt 0:00:17]} 27. Kf2 {[%emt 0:00:07]} Nd5 {[%emt 0:00:13]} 28. h4 {[%emt 0:00:21]} Qb6 {[%emt 0:00:25]} 29. Qd3 {[%emt 0:00:14]} Rfd8 {[%emt 0:00:19]} 30. Qb3 {[%emt 0:01:23]} Kh7 {[%emt 0:00:08]} 31. h5 {[%emt 0:00:22]} g5 {[%emt 0:00:05]} 32. Rxc8 {[%emt 0:00:49]} Rxc8 {[%emt 0:00:02]} 33. Rxd5 {[%emt 0:00:02]} exd5 {[%emt 0:00:05]} 34. Bd3 {[%emt 0:00:00]} Qf6 {[%emt 0:00:44]} 35. g4 {[%emt 0:00:14]} Rc3 {[%emt 0:00:20]} 36. Qxd5 {[%emt 0:00:00]} Rxa3 {[%emt 0:00:07]} 37. Bxf5+ {[%emt 0:00:05]} Kg7 {[%emt 0:00:01]} 38. Be4 {[%emt 0:00:36]} Ra1 {[%emt 0:00:23]} 39. Kg3 {[%emt 0:00:47]} Re1 {[%emt 0:00:47]} 40. Kf2 {[%emt 0:00:11]} Rc1 {[%emt 0:00:08]} 41. Kg3 {[%emt 0:00:01]} Rc3 {[%emt 0:00:18]} 42. Bd3 {[%emt 0:00:14]} Rc8 {[%emt 0:00:58]} 43. f4 {[%emt 0:00:03]} Rd8 {[%emt 0:00:22]} 44. Qe4 {[%emt 0:00:06]} Kf8 {[%emt 0:00:06]} 45. Qh7 {[%emt 0:00:24]} gxf4+ {[%emt 0:00:15]} 46. exf4 {[%emt 0:00:01]} Qc3 {[%emt 0:00:05]} 47. Qh6+ {[%emt 0:00:17]} Ke8 {[%emt 0:00:02]} 48. Kh4 {[%emt 0:00:05]} Rxd3 {[%emt 0:00:06]} 49. Qxa6 {[%emt 0:00:12]} Qe1+ {[%emt 0:00:13]} 50. Kg5 {[%emt 0:00:00]} Qe7+ {[%emt 0:00:01]} 51. Qf6 {[%emt 0:00:20]} Rd6 {[%emt 0:00:07]} 52. Qxe7+ {[%emt 0:00:10]} Kxe7 {[%emt 0:00:01]} 53. f5 {[%emt 0:00:01]} f6+ {[%emt 0:00:28]} 54. Kg6 {[%emt 0:00:04]} Rd4 {[%emt 0:00:01]} 55. g5 {[%emt 0:00:17]} Rg4 {[%emt 0:00:03]} 0-1

[Event "RUS-ch Rapid Men 2018"]
[Site "Sochi"]
[Date "2018.10.05"]
[Round "3"]
[White "Indzhiev, Aldar"]
[Black "Pridorozhni, Aleksei"]
[Result "0-1"]
[ECO "A41"]
[WhiteElo "2218"]
[BlackElo "2574"]
[Annotator "ChessBase"]
[PlyCount "102"]
[EventDate "2018.10.05"]
[EventType "swiss"]
[EventCountry "RUS"]
[SourceTitle "playchess.com"]
[Source "ChessBase"]
[SourceQuality "1"]
[TimeControl "900+10"]

1. d4 {[%emt 0:00:00]} d6 {[%emt 0:00:00]} 2. Nf3 {[%emt 0:00:00]} Bg4 {[%emt 0:00:00]} 3. c4 {[%emt 0:00:11]} Nd7 {[%emt 0:00:00]} 4. Nbd2 {[%emt 0:00:39]} c6 {[%emt 0:00:00]} 5. h3 {[%emt 0:00:02]} Bh5 {[%emt 0:00:02]} 6. g4 {[%emt 0:00:04]} Bg6 {[%emt 0:00:01]} 7. Nh4 {[%emt 0:00:20]} e5 {[%emt 0:00:02]} 8. Nxg6 {[%emt 0:00:01]} hxg6 {[%emt 0:00:03]} 9. dxe5 {[%emt 0:00:06]} dxe5 {[%emt 0:00:03]} 10. Bg2 {[%emt 0:00:16]} Qc7 {[%emt 0:00:03]} 11. Qc2 {[%emt 0:00:26]} Ngf6 {[%emt 0:00:04]} 12. b3 {[%emt 0:00:26]} a5 {[%emt 0:00:23]} 13. a3 {[%emt 0:00:13]} Nc5 {[%emt 0:00:17]} 14. Bb2 {[%emt 0:00:11]} Ne6 {[%emt 0:00:04]} 15. e3 {[%emt 0:00:15]} Be7 {[%emt 0:00:04]} 16. Rd1 {[%emt 0:02:14]} O-O {[%emt 0:01:33]} 17. h4 {[%emt 0:02:14]} Rad8 {[%emt 0:00:25]} 18. h5 {[%emt 0:00:59]} gxh5 {[%emt 0:01:45]} 19. gxh5 {[%emt 0:00:14]} Nc5 {[%emt 0:00:03]} 20. Ke2 {[%emt 0:02:39]} Nd3 {[%emt 0:00:28]} 21. Ne4 {[%emt 0:02:32]} Nxb2 {[%emt 0:00:04]} 22. Qxb2 {[%emt 0:00:02]} Nxe4 {[%emt 0:02:10]} 23. Bxe4 {[%emt 0:00:01]} Rxd1 {[%emt 0:00:11]} 24. Rxd1 {[%emt 0:00:06]} f5 {[%emt 0:00:35]} 25. Bc2 {[%emt 0:01:06]} e4 {[%emt 0:00:11]} 26. Qd4 {[%emt 0:02:18]} Rd8 {[%emt 0:00:55]} 27. Qa1 {[%emt 0:00:13]} Rxd1 {[%emt 0:00:10]} 28. Qxd1 {[%emt 0:00:14]} Bxa3 {[%emt 0:00:04]} 29. Qg1 {[%emt 0:00:04]} Qf7 {[%emt 0:00:07]} 30. Qh2 {[%emt 0:00:09]} Bf8 {[%emt 0:00:22]} 31. f3 {[%emt 0:00:09]} a4 {[%emt 0:00:09]} 32. fxe4 {[%emt 0:00:49]} a3 {[%emt 0:00:12]} 33. Bb1 {[%emt 0:00:37]} fxe4 {[%emt 0:00:09]} 34. h6 {[%emt 0:00:30]} Qf3+ 35. Kd2 Bb4+ {[%emt 0:00:23]} 36. Kc2 {[%emt 0:00:08]} Qxe3 {[%emt 0:00:13]} 37. hxg7 {[%emt 0:00:17]} Qc3+ {[%emt 0:00:35]} 38. Kd1 {[%emt 0:00:01]} Qxb3+ {[%emt 0:00:04]} 39. Bc2 {[%emt 0:00:10]} Qf3+ {[%emt 0:00:03]} 40. Kc1 {[%emt 0:00:02]} Qf1+ {[%emt 0:00:12]} 41. Bd1 {[%emt 0:00:03]} Qxc4+ {[%emt 0:00:03]} 42. Bc2 {[%emt 0:00:11]} Kxg7 {[%emt 0:00:19]} 43. Qc7+ {[%emt 0:00:11]} Kf6 {[%emt 0:00:03]} 44. Qd8+ {[%emt 0:00:03]} Ke5 {[%emt 0:00:21]} 45. Qc7+ {[%emt 0:00:13]} Kd5 {[%emt 0:00:13]} 46. Qd8+ {[%emt 0:00:45]} Kc5 {[%emt 0:00:15]} 47. Qf8+ {[%emt 0:00:13]} Kb6 {[%emt 0:00:04]} 48. Qf6 {[%emt 0:00:10]} a2 {[%emt 0:00:10]} 49. Qf2+ {[%emt 0:00:10]} Bc5 {[%emt 0:00:05]} 50. Qf6 {[%emt 0:00:01]} Be3+ {[%emt 0:00:12]} 51. Kd1 {[%emt 0:00:08]} Qd4+ {[%emt 0:00:02]} 0-1

[Event "RUS-ch Rapid Men 2018"]
[Site "Sochi"]
[Date "2018.10.05"]
[Round "4"]
[White "Kryakvin, Dmitry"]
[Black "Linker, Mikhail"]
[Result "1/2-1/2"]
[ECO "A45"]
[WhiteElo "2595"]
[BlackElo "2269"]
[Annotator "ChessBase"]
[PlyCount "58"]
[EventDate "2018.10.05"]
[EventType "swiss"]
[EventCountry "RUS"]
[SourceTitle "playchess.com"]
[Source "ChessBase"]
[SourceQuality "1"]
[TimeControl "900+10"]

1. d4 {[%emt 0:00:00]} Nf6 {[%emt 0:00:20]} 2. Bg5 {[%emt 0:00:01]} Ne4 {[%emt 0:00:02]} 3. Bf4 {[%emt 0:00:01]} d5 {[%emt 0:00:07]} 4. e3 {[%emt 0:00:02]} c6 {[%emt 0:00:33]} 5. Nd2 {[%emt 0:00:13]} Qa5 {[%emt 0:00:32]} 6. Bd3 {[%emt 0:00:20]} Bf5 {[%emt 0:01:02]} 7. Ngf3 {[%emt 0:00:16]} e6 {[%emt 0:00:37]} 8. O-O {[%emt 0:00:53]} Nxd2 {[%emt 0:01:34]} 9. Nxd2 {[%emt 0:00:04]} Bxd3 {[%emt 0:00:14]} 10. cxd3 {[%emt 0:00:02]} Nd7 {[%emt 0:00:03]} 11. a3 {[%emt 0:00:04]} Be7 {[%emt 0:00:07]} 12. b4 {[%emt 0:00:04]} Qb6 {[%emt 0:00:09]} 13. Nb3 {[%emt 0:00:03]} O-O {[%emt 0:00:09]} 14. Qc2 {[%emt 0:00:17]} Rfe8 {[%emt 0:00:41]} 15. Rfb1 {[%emt 0:00:34]} Bf6 {[%emt 0:03:06]} 16. Nc5 {[%emt 0:01:54]} Rad8 {[%emt 0:02:47]} 17. Qc3 {[%emt 0:00:59]} e5 {[%emt 0:03:09]} 18. Nxd7 {[%emt 0:00:09]} Rxd7 {[%emt 0:00:08]} 19. dxe5 {[%emt 0:00:22]} d4 {[%emt 0:00:01]} 20. exd4 {[%emt 0:03:11]} Rxd4 {[%emt 0:00:01]} 21. Be3 {[%emt 0:00:21]} Bxe5 {[%emt 0:00:02]} 22. Re1 {[%emt 0:00:54]} Rdd8 {[%emt 0:01:01]} 23. Qxe5 {[%emt 0:02:59]} Rxe5 {[%emt 0:00:02]} 24. Bxb6 {[%emt 0:00:01]} Rxe1+ {[%emt 0:00:01]} 25. Rxe1 {[%emt 0:00:01]} axb6 {[%emt 0:00:01]} 26. Re7 {[%emt 0:00:09]} Kf8 {[%emt 0:00:23]} 27. Rxb7 {[%emt 0:00:03]} Rxd3 {[%emt 0:00:01]} 28. g3 {[%emt 0:00:19]} Rxa3 {[%emt 0:00:39]} 29. Rxb6 {[%emt 0:00:01]} Rb3 {[%emt 0:00:01]} 1/2-1/2

[Event "RUS-ch Rapid Men 2018"]
[Site "Sochi"]
[Date "2018.10.05"]
[Round "4"]
[White "Bocharov, Ivan"]
[Black "Maletin, Pavel"]
[Result "1-0"]
[ECO "C50"]
[WhiteElo "2563"]
[BlackElo "2586"]
[Annotator "ChessBase"]
[PlyCount "81"]
[EventDate "2018.10.05"]
[EventType "swiss"]
[EventCountry "RUS"]
[SourceTitle "playchess.com"]
[Source "ChessBase"]
[SourceQuality "1"]
[TimeControl "900+10"]

1. e4 {[%emt 0:00:00]} e5 {[%emt 0:00:00]} 2. Bc4 {[%emt 0:00:00]} Nf6 {[%emt 0:00:00]} 3. d3 {[%emt 0:00:00]} Nc6 {[%emt 0:00:01]} 4. Nf3 {[%emt 0:00:00]} Bc5 {[%emt 0:00:03]} 5. O-O {[%emt 0:00:00]} d6 {[%emt 0:00:06]} 6. c3 {[%emt 0:00:11]} h6 {[%emt 0:00:05]} 7. Re1 {[%emt 0:00:34]} O-O {[%emt 0:00:04]} 8. a4 {[%emt 0:00:18]} a5 {[%emt 0:00:05]} 9. Nbd2 {[%emt 0:00:13]} Ne7 {[%emt 0:00:39]} 10. Nf1 {[%emt 0:00:05]} Ng6 {[%emt 0:00:12]} 11. Ng3 {[%emt 0:00:02]} c6 {[%emt 0:00:22]} 12. h3 {[%emt 0:00:57]} d5 {[%emt 0:00:29]} 13. Ba2 {[%emt 0:01:49]} Bd6 {[%emt 0:00:05]} 14. d4 {[%emt 0:02:00]} dxe4 {[%emt 0:00:11]} 15. Nxe4 {[%emt 0:00:11]} Nxe4 {[%emt 0:00:07]} 16. Rxe4 {[%emt 0:00:02]} Bf5 {[%emt 0:00:14]} 17. Re1 {[%emt 0:00:03]} e4 {[%emt 0:01:13]} 18. Nd2 {[%emt 0:00:18]} Qh4 {[%emt 0:00:11]} 19. Nf1 {[%emt 0:02:15]} Rae8 {[%emt 0:00:33]} 20. Bb1 {[%emt 0:02:49]} Bf4 {[%emt 0:02:16]} 21. Bxf4 {[%emt 0:01:40]} Nxf4 {[%emt 0:01:13]} 22. Ng3 {[%emt 0:00:08]} Bxh3 {[%emt 0:01:59]} 23. Bxe4 {[%emt 0:00:11]} Bg4 {[%emt 0:00:24]} 24. Qb3 {[%emt 0:01:44]} Re7 {[%emt 0:02:08]} 25. d5 {[%emt 0:00:30]} Rfe8 {[%emt 0:01:08]} 26. dxc6 {[%emt 0:01:58]} bxc6 {[%emt 0:00:21]} 27. Re3 {[%emt 0:00:35]} Qg5 {[%emt 0:04:30]} 28. Rae1 {[%emt 0:00:02]} c5 {[%emt 0:00:45]} 29. Qb5 {[%emt 0:00:41]} Bd7 {[%emt 0:00:09]} 30. Qxa5 {[%emt 0:00:06]} h5 {[%emt 0:00:01]} 31. Bc2 {[%emt 0:00:20]} Rxe3 {[%emt 0:00:11]} 32. Rxe3 {[%emt 0:00:00]} Rxe3 {[%emt 0:00:06]} 33. fxe3 {[%emt 0:00:01]} Ne6 {[%emt 0:00:23]} 34. Qa8+ {[%emt 0:00:16]} Nf8 {[%emt 0:00:04]} 35. Qf3 {[%emt 0:00:01]} h4 {[%emt 0:00:15]} 36. Ne4 {[%emt 0:00:01]} Qe7 {[%emt 0:00:02]} 37. a5 {[%emt 0:00:10]} Bc6 {[%emt 0:00:10]} 38. Qf5 {[%emt 0:00:03]} Nd7 {[%emt 0:00:12]} 39. a6 {[%emt 0:00:08]} g6 {[%emt 0:00:04]} 40. Qf4 {[%emt 0:00:01]} Kg7 {[%emt 0:00:11]} 41. Qd6 {[%emt 0:00:05]} 1-0

[Event "RUS-ch Rapid Men 2018"]
[Site "Sochi"]
[Date "2018.10.05"]
[Round "4"]
[White "Bocharov, Dmitry"]
[Black "Smirnov, Timofey"]
[Result "1-0"]
[ECO "D12"]
[WhiteElo "2557"]
[BlackElo "2332"]
[Annotator "ChessBase"]
[PlyCount "75"]
[EventDate "2018.10.05"]
[EventType "swiss"]
[EventCountry "RUS"]
[SourceTitle "playchess.com"]
[Source "ChessBase"]
[SourceQuality "1"]
[TimeControl "900+10"]

1. d4 {[%emt 0:00:00]} d5 {[%emt 0:00:00]} 2. c4 {[%emt 0:00:00]} c6 {[%emt 0:00:00]} 3. Nf3 {[%emt 0:00:00]} Nf6 {[%emt 0:00:00]} 4. e3 {[%emt 0:00:26]} Bf5 {[%emt 0:00:00]} 5. Nc3 {[%emt 0:00:03]} e6 {[%emt 0:00:04]} 6. Nh4 {[%emt 0:00:09]} Be4 {[%emt 0:00:04]} 7. f3 {[%emt 0:00:30]} Bg6 {[%emt 0:00:03]} 8. g3 {[%emt 0:00:20]} Be7 {[%emt 0:01:01]} 9. Bd2 {[%emt 0:00:20]} Nbd7 {[%emt 0:01:18]} 10. Rc1 {[%emt 0:00:25]} O-O {[%emt 0:00:17]} 11. cxd5 {[%emt 0:00:59]} exd5 {[%emt 0:00:42]} 12. Be2 {[%emt 0:00:28]} Re8 {[%emt 0:00:17]} 13. O-O {[%emt 0:00:10]} c5 {[%emt 0:00:28]} 14. Be1 {[%emt 0:00:14]} a6 {[%emt 0:00:31]} 15. Bf2 {[%emt 0:00:15]} cxd4 {[%emt 0:00:03]} 16. exd4 {[%emt 0:00:12]} b5 {[%emt 0:00:05]} 17. Nxg6 {[%emt 0:00:37]} hxg6 {[%emt 0:00:04]} 18. a4 {[%emt 0:00:08]} b4 {[%emt 0:00:40]} 19. Nb1 {[%emt 0:00:03]} Qa5 {[%emt 0:01:12]} 20. Nd2 {[%emt 0:00:05]} Rec8 {[%emt 0:00:52]} 21. Ra1 {[%emt 0:00:25]} Qc7 {[%emt 0:00:26]} 22. a5 {[%emt 0:02:52]} Qc2 {[%emt 0:00:21]} 23. Rb1 {[%emt 0:00:15]} Bd8 {[%emt 0:00:23]} 24. Nb3 {[%emt 0:00:09]} Ne8 {[%emt 0:00:21]} 25. Qxc2 {[%emt 0:00:24]} Rxc2 {[%emt 0:00:02]} 26. Bd3 {[%emt 0:00:01]} Rc7 {[%emt 0:01:15]} 27. Rfc1 {[%emt 0:00:19]} Nd6 {[%emt 0:00:09]} 28. Rxc7 {[%emt 0:00:06]} Bxc7 {[%emt 0:00:02]} 29. Rc1 {[%emt 0:00:02]} Bd8 {[%emt 0:00:14]} 30. Be1 {[%emt 0:02:12]} Bg5 {[%emt 0:03:58]} 31. Rc6 {[%emt 0:01:23]} Nf5 {[%emt 0:00:20]} 32. Bf2 {[%emt 0:01:06]} Nb8 {[%emt 0:00:31]} 33. Rc8+ {[%emt 0:00:13]} Kh7 {[%emt 0:00:02]} 34. Bxf5 {[%emt 0:00:54]} gxf5 {[%emt 0:00:02]} 35. Nc5 {[%emt 0:00:01]} Be7 {[%emt 0:00:32]} 36. Re8 {[%emt 0:01:01]} Bd6 {[%emt 0:00:12]} 37. Nb7 {[%emt 0:00:04]} Bc7 {[%emt 0:00:11]} 38. Rc8 {[%emt 0:00:02]} 1-0

[Event "RUS-ch Rapid Men 2018"]
[Site "Sochi"]
[Date "2018.10.05"]
[Round "4"]
[White "Krylov, Mikhail"]
[Black "Stambulian, Arsen"]
[Result "1-0"]
[ECO "D85"]
[WhiteElo "2476"]
[BlackElo "2339"]
[Annotator "ChessBase"]
[PlyCount "59"]
[EventDate "2018.10.05"]
[EventType "swiss"]
[EventCountry "RUS"]
[SourceTitle "playchess.com"]
[Source "ChessBase"]
[SourceQuality "1"]
[TimeControl "900+10"]

1. d4 {[%emt 0:00:00]} Nf6 {[%emt 0:00:00]} 2. c4 {[%emt 0:00:00]} g6 {[%emt 0:00:00]} 3. Nc3 {[%emt 0:00:00]} d5 {[%emt 0:00:00]} 4. cxd5 {[%emt 0:00:01]} Nxd5 {[%emt 0:00:00]} 5. e4 {[%emt 0:00:03]} Nxc3 {[%emt 0:00:00]} 6. bxc3 {[%emt 0:00:01]} Bg7 {[%emt 0:00:01]} 7. Nf3 {[%emt 0:00:06]} c5 {[%emt 0:00:01]} 8. Rb1 {[%emt 0:00:02]} O-O {[%emt 0:00:04]} 9. Be2 {[%emt 0:00:03]} b6 {[%emt 0:00:02]} 10. O-O {[%emt 0:00:39]} Bb7 {[%emt 0:00:04]} 11. Qd3 {[%emt 0:00:31]} Qd7 {[%emt 0:00:37]} 12. d5 {[%emt 0:00:39]} e6 {[%emt 0:02:19]} 13. c4 {[%emt 0:00:18]} Na6 {[%emt 0:00:53]} 14. Bb2 {[%emt 0:00:37]} exd5 {[%emt 0:00:44]} 15. Bxg7 {[%emt 0:01:21]} Kxg7 {[%emt 0:00:06]} 16. cxd5 {[%emt 0:01:05]} Kg8 {[%emt 0:02:17]} 17. Ne5 {[%emt 0:01:46]} Qe7 {[%emt 0:00:31]} 18. f4 {[%emt 0:00:40]} Rad8 {[%emt 0:01:06]} 19. Bf3 {[%emt 0:02:17]} Nb4 {[%emt 0:01:10]} 20. Qb3 {[%emt 0:00:16]} Kg7 {[%emt 0:00:39]} 21. a3 {[%emt 0:00:21]} Na6 {[%emt 0:00:22]} 22. Rbd1 {[%emt 0:00:58]} Nb8 {[%emt 0:00:28]} 23. Nc4 {[%emt 0:00:21]} Ba6 {[%emt 0:01:52]} 24. e5 {[%emt 0:00:34]} b5 {[%emt 0:00:09]} 25. Nd2 {[%emt 0:01:00]} b4 {[%emt 0:01:05]} 26. Rfe1 {[%emt 0:00:47]} c4 {[%emt 0:00:21]} 27. Qxb4 {[%emt 0:01:14]} Qxb4 {[%emt 0:01:33]} 28. axb4 {[%emt 0:00:02]} Rc8 {[%emt 0:00:01]} 29. Ne4 {[%emt 0:00:15]} Nd7 {[%emt 0:00:16]} 30. Ra1 {[%emt 0:00:06]} 1-0

[Event "RUS-ch Rapid Men 2018"]
[Site "Sochi"]
[Date "2018.10.05"]
[Round "4"]
[White "Kezin, Roman"]
[Black "Rozum, Ivan"]
[Result "1-0"]
[ECO "E01"]
[WhiteElo "2471"]
[BlackElo "2573"]
[Annotator "RC"]
[PlyCount "105"]
[EventDate "2018.10.05"]
[EventType "swiss"]
[EventCountry "RUS"]
[SourceTitle "playchess.com"]
[Source "ChessBase"]
[SourceQuality "1"]
[TimeControl "900+10"]

1. d4 {[%emt 0:00:00]} Nf6 {[%emt 0:00:00]} 2. c4 {[%emt 0:00:00]} e6 {[%emt 0:00:00]} 3. g3 {[%emt 0:00:00]} d5 {[%emt 0:00:12]} 4. Bg2 {[%emt 0:00:00]} Bb4+ {[%emt 0:00:02]} 5. Bd2 {[%emt 0:00:11]} Bd6 {[%emt 0:00:02]} 6. Nf3 {[%emt 0:00:47]} c6 {[%emt 0:00:12]} 7. O-O {[%emt 0:00:09]} Nbd7 {[%emt 0:00:07]} 8. b3 {[%emt 0:00:52]} Ne4 {[%emt 0:00:02]} 9. Nc3 {[%emt 0:00:06]} Nxd2 {[%emt 0:00:05]} 10. Qxd2 {[%emt 0:00:32]} O-O {[%emt 0:00:10]} 11. c5 {[%emt 0:01:16]} Bc7 {[%emt 0:00:10]} 12. e4 Ba5 {[%emt 0:02:27]} 13. exd5 {[%emt 0:02:55]} exd5 {[%emt 0:00:02]} 14. a3 {[%emt 0:00:31]} Nf6 {[%emt 0:00:08]} 15. b4 {[%emt 0:00:02]} Bc7 {[%emt 0:00:01]} 16. Qd3 {[%emt 0:01:57]} g6 {[%emt 0:00:54]} 17. Rfe1 {[%emt 0:01:53]} Bf5 {[%emt 0:00:05]} 18. Qd2 {[%emt 0:02:59]} Be4 {[%emt 0:02:20]} 19. Nxe4 {[%emt 0:00:46]} Nxe4 {[%emt 0:00:29]} 20. Qd3 {[%emt 0:00:05]} Re8 {[%emt 0:01:58]} 21. Nd2 {[%emt 0:01:41]} f5 {[%emt 0:00:03]} 22. Re2 {[%emt 0:00:20]} Qf6 {[%emt 0:00:58]} 23. Rae1 {[%emt 0:00:20]} Kf8 {[%emt 0:01:40]} 24. Nf3 {[%emt 0:01:08]} Re7 {[%emt 0:01:12]} 25. Ne5 {[%emt 0:00:19]} Bxe5 {[%emt 0:02:02]} 26. dxe5 {[%emt 0:00:05]} Qg7 {[%emt 0:00:07]} 27. f3 {[%emt 0:00:24]} Ng5 {[%emt 0:00:03]} 28. f4 {[%emt 0:00:11]} Ne6 {[%emt 0:00:10]} 29. Rc1 {[%emt 0:00:05]} a6 {[%emt 0:00:06]} 30. h3 {[%emt 0:00:09]} Kg8 {[%emt 0:00:04]} 31. a4 {[%emt 0:00:07]} Rf7 {[%emt 0:00:13]} 32. Rf2 {[%emt 0:00:05]} Raf8 {[%emt 0:00:10]} 33. h4 {[%emt 0:00:21]} h6 {[%emt 0:00:09]} 34. Bf3 {[%emt 0:00:08]} g5 {[%emt 0:00:28]} 35. Bh5 {[%emt 0:00:07]} Re7 {[%emt 0:00:00]} 36. fxg5 {[%emt 0:00:17]} hxg5 {[%emt 0:00:02]} 37. Rxf5 {[%emt 0:00:07]} gxh4 {[%emt 0:00:52]} 38. g4 {[%emt 0:00:13]} Nf4 {[%emt 0:00:43]} 39. Rxf8+ {[%emt 0:00:01]} Qxf8 {[%emt 0:00:02]} 40. Qe3 {[%emt 0:00:13]} Qh6 {[%emt 0:01:03]} 41. Rf1 {[%emt 0:00:12]} Nh3+ {[%emt 0:01:11]} 42. Qxh3 {[%emt 0:00:02]} Rxe5 {[%emt 0:00:01]} 43. Qxh4 {[%emt 0:00:10]} Qe3+ {[%emt 0:00:05]} 44. Kh2 {[%emt 0:00:22]} Rg5 {[%emt 0:00:43]} 45. Qg3 {[%emt 0:00:10]} Re5 {[%emt 0:00:29]} 46. Qxe3 {[%emt 0:00:09]} Rxe3 {[%emt 0:00:01]} 47. Rf7 {[%emt 0:00:04]} a5 {[%emt 0:00:17]} 48. bxa5 {[%emt 0:00:12]} Rb3 {[%emt 0:00:11]} 49. Rc7 {[%emt 0:00:08]} Rb2+ {[%emt 0:00:22]} 50. Kg3 {[%emt 0:00:01]} d4 {[%emt 0:00:01]} 51. a6 {[%emt 0:00:06]} bxa6 {[%emt 0:00:01]} 52. Rxc6 {[%emt 0:00:01]} d3 {[%emt 0:00:03]} 53. Rxa6 {[%emt 0:00:11]} 1-0